Cogmind - Beta 9.4 *** ADVENTURER MODE // 2020.02.09 @ 18:36:36 Player: Mekanikal Result: Destroyed by as-88597 with Assembled Heavy Rifle Performance ------------- Evolutions (0) 0 Regions Visited (2) 400 Robots Destroyed (33) 165 Value Destroyed (479) 479 Prototype IDs (0) 0 Alien Tech Used (0) 0 Bonus (0) 0 TOTAL SCORE: 1044 Bonus ------- None Cogmind --------- Core Integrity 0/250 Matter 294/300 Energy 100/100 System Corruption 0% Temperature Cool (0) Movement Core (200) Ox3 Location -10/Mines Parts ------- > --- POWER (1) -------- (None) > --- PROPULSION (2) --- (None) > --- UTILITY (2) ------ Medium Storage Unit > --- WEAPON (2) ------- Minigun > --- INVENTORY (8) ---- Nuclear Core Sensor Array Improved Signal Interpreter Armor Integrity Analyzer Improved Trap Extractor Improved Datajack Proton Bomb Trap Peak State ------------ > --- POWER ------------ Light Nuclear Core > --- PROPULSION ------- Wheel Compact Wheel > --- UTILITY ---------- Medium Storage Unit Improved Trap Extractor > --- WEAPON ----------- EM Pulse Cannon Improved Datajack > --- INVENTORY -------- Nuclear Core Heat Sink Sensor Array Improved Signal Interpreter Armor Integrity Analyzer Beam Cannon Minigun Proton Bomb Trap [Rating: 17] Favorites ----------- Power Ion Engine Engine Ion Engine Power Core Light Nuclear Core Propulsion Wheel Treads Light Treads Leg Aluminum Leg Wheel Wheel Utility Heat Sink Device Heat Sink Storage Medium Storage Unit Processor Seismic Analyzer Weapon Beam Cannon Energy Cannon Beam Cannon Ballistic Gun Assault Rifle Launcher Grenade Launcher Special Melee Weapon Improved Datajack Build | -11 -10 -10 ------- Run | Scr Mat Min Slots Evolved . | . . . Power . | . . . Propulsion . | . . . Utility . | . . . Weapon . | . . . Parts Attached 42 | 9 16 17 Power 4 | 1 2 1 Engine 3 | 1 2 . Core 1 | . . 1 Reactor . | . . . Propulsion 11 | 4 3 4 Treads 2 | 2 . . Leg 2 | . . 2 Wheel 7 | 2 3 2 Hover . | . . . Flight . | . . . Utility 11 | 2 4 5 Device 6 | . 1 5 Storage 4 | 1 3 . Processor 1 | 1 . . Hackware . | . . . Protection . | . . . Artifact . | . . . Weapon 16 | 2 7 7 Energy Gun . | . . . Energy Cannon 6 | . 3 3 Ballistic Gun 5 | 2 2 1 Ballistic Cannon . | . . . Launcher 1 | . 1 . Special Weapon . | . . . Impact Weapon . | . . . Slashing Weapon . | . . . Piercing Weapon . | . . . Special Melee Weapon 4 | . 1 3 Unidentified Prototypes . | . . . Parts Lost 6 | . . 6 Power 1 | . . 1 Propulsion 2 | . . 2 Utility 1 | . . 1 Weapon 2 | . . 2 Highest Loss Streak 6 | . . 6 Average Slot Usage (%) 99 | . 99 98 Engine 11 | . 14 7 Core 2 | . . 6 Wheel 27 | . 28 26 Device 11 | . 9 14 Storage 14 | . 14 14 Processor 2 | . 4 . Energy Cannon 21 | . 18 25 Ballistic Gun 4 | . 8 . Special Melee Weapon 1 | . . 2 Naked Turns . | . . . Heaviest Build 23 | 11 20 23 Greatest Support 40 | 40 26 32 Greatest Overweight (x) 3 | . 1 3 Average Overweight (x) . | . . . Largest Inventory Capacity 8 | 6 8 8 Average Capacity 7 | 5 7 8 Most Carried 8 | 6 8 8 Average Carried 6 | 3 6 7 Final Capacity 8 | 6 8 8 Final Carried 8 | 3 8 7 Class Distribution -------------------- 84% | Mutant 15% | Scavenger-Mutant Dominant Class ---------------- Mutant | -10/Materials Mutant | -10/Mines Resources | -11 -10 -10 ----------- Run | Scr Mat Min Matter Collected 752 | 300 302 150 Remotely . | . . . Salvage Created 1086 | 140 599 347 Parts 68 | 5 47 16 Haulers Intercepted 2 | . 2 . Recyclers Shooed . | . . . Parts Field Recycled . | . . . Retrieved Matter . | . . . Parts Self-Destructed . | . . . Prevented . | . . . Kills | -11 -10 -10 ------- Run | Scr Mat Min Combat Hostiles Destroyed 19 | . 13 6 Guns 4 | . 4 . Cannons 15 | . 9 6 Classes Destroyed 9 | 3 5 1 Worker 4 | 1 3 . Builder 1 | . 1 . Tunneler 1 | 1 . . Hauler 2 | . 2 . Recycler 4 | 1 1 2 Watcher 2 | . 2 . Swarmer 12 | . 9 3 Grunt 6 | . 4 2 Demolisher 1 | . . 1 Best Kill Streak 5 | 3 5 2 Combat Bots Only 5 | . 5 2 Max Kills in Single Turn 1 | 1 1 1 Gunslinging . | . . . Exploded . | . . . Melee . | . . . Uniques/NPCs Destroyed . | . . . Combat | -11 -10 -10 -------- Run | Scr Mat Min Damage Taken 942 | . 293 649 Core 259 | . 54 205 Absorbed by Shields . | . . . Core Remaining (%) 100 | 100 . . Volleys Fired 80 | 8 49 23 Largest 2 | 1 2 2 Hottest 123 | 20 120 123 Shots Fired 133 | 8 92 33 Gun 58 | 8 46 4 Cannon 71 | . 42 29 Launcher 4 | . 4 . Special . | . . . Kinetic 58 | 8 46 4 Thermal 63 | . 42 21 Explosive 4 | . 4 . Electromagnetic 8 | . . 8 Robot Hit Streak 19 | 8 19 15 Robot Miss Streak 2 | . 2 1 Penetration Max . | . . . Secondary Targets . | . . . Shots Hit Robots 96 | 8 61 27 Core Hits 47 | 4 32 11 Critical Hits 1 | . . 1 Critical Kills . | . . . Critical Parts Destroyed 1 | . . 1 Melee Attacks . | . . . Impact . | . . . Slashing . | . . . Piercing . | . . . Sneak Attacks . | . . . Combat Hostiles . | . . . Follow-up Attacks . | . . . Damage Inflicted 1467 | 90 845 532 Guns 562 | 90 423 49 Cannons 844 | . 401 443 Explosions 61 | . 21 40 Melee . | . . . Ramming . | . . . Kinetic 562 | 90 423 49 Thermal 721 | . 401 320 Explosive 21 | . 21 . Electromagnetic 163 | . . 163 Impact . | . . . Slashing . | . . . Piercing . | . . . Highest Corruption . | . . . Average Corruption . | . . . Corruption Purged . | . . . Overload Shots . | . . . Overflow Damage . | . . . Projectiles . | . . . Explosions . | . . . Melee . | . . . Knockbacks . | . . . Impact . | . . . Kinetic . | . . . Secondary . | . . . Self-Inflicted Damage . | . . . Shots . | . . . Rammed . | . . . Targets Rammed . | . . . Kicked . | . . . Crushed . | . . . Highest Temperature 186 | . 120 186 Average Temperature 42 | . 37 50 Received Heat Transfer 165 | . 129 36 Siege Activations . | . . . Robots Corrupted . | . . . Combat Hostiles . | . . . Parts Fried . | . . . Impact Corruptions . | . . . Robots Melted . | . . . Combat Hostiles . | . . . Parts Melted 2 | . 1 1 Heat Transferred 1493 | . 851 642 Parts Sabotaged . | . . . Parts Stolen . | . . . Parts Stripped . | . . . Power Chain Reactions 1 | . . 1 Missiles Intercepted . | . . . Alert | -11 -10 -10 ------- Run | Scr Mat Min Peak Influence 261 | 15 261 125 Average Influence 74 | 4 125 21 Maximum Alert Level 1 | . 1 . Low Security (%) 91 | 100 84 100 Level 1 8 | . 15 . Level 2 . | . . . Level 3 . | . . . Level 4 . | . . . Level 5 . | . . . High Security . | . . . Max Security . | . . . Squads Dispatched . | . . . Investigation . | . . . Extermination . | . . . Reinforcement . | . . . Assault . | . . . Garrison . | . . . Intercept . | . . . Construction Impeded . | . . . Haulers Reinforced . | . . . Stealth | -11 -10 -10 --------- Run | Scr Mat Min Distress Signals 1 | . 1 . Communications Jammed . | . . . Distress Signals . | . . . Times Spotted 28 | . 19 9 Peak Tracking Total 5 | . 5 3 Tactical Retreats 2 | . 1 1 Traps | -11 -10 -10 ------- Run | Scr Mat Min Traps Triggered . | . . . Indirectly . | . . . Trap Hack Attempts 3 | . . 3 Triggered . | . . . Disarmed . | . . . Reprogrammed 2 | . 1 1 Reused . | . . . Traps Extracted 3 | . . 3 Installed . | . . . Triggered . | . . . Machines | -11 -10 -10 ---------- Run | Scr Mat Min Machines Disabled . | . . . Max in Single Turn . | . . . Machines Sabotaged . | . . . Garrisons Compromised . | . . . Overloaded Fab Kills . | . . . Fab Network Shutdowns . | . . . Hacking | -11 -10 -10 --------- Run | Scr Mat Min Machines Accessed 10 | . 9 1 Terminals 6 | . 6 . Fabricators . | . . . Repair Stations 1 | . 1 . Recycling Units 2 | . 2 . Scanalyzers . | . . . Garrison Access . | . . . Total Hacks 25 | . 24 1 Successful 16 | . 15 1 Failed 9 | . 9 . Catastrophic . | . . . Database Lockouts . | . . . Manual . | . . . Terminals 19 | . 19 . Fabricators . | . . . Repair Stations 3 | . 3 . Recycling Units 2 | . 2 . Scanalyzers . | . . . Garrison Access . | . . . Terminal Hacks 13 | . 12 1 Open Door 1 | . . 1 Branch Access Points 1 | . 1 . Emergency Access Points 1 | . 1 . Locate Traps 2 | . 2 . Reprogram Traps 1 | . 1 . Dispatch Records 1 | . 1 . Maintenance Status 1 | . 1 . Security Status 1 | . 1 . Patrol Status 2 | . 2 . Investigation Status 1 | . 1 . Reinforcement Status 1 | . 1 . Fabricator Hacks . | . . . Repair Station Hacks 1 | . 1 . Scan Component 1 | . 1 . Recycling Unit Hacks 2 | . 2 . Report Inventory 2 | . 2 . Scanalyzer . | . . . Garrison Access Hacks . | . . . Unauthorized Hacks . | . . . Terminals . | . . . Fabricators . | . . . Repair Stations . | . . . Recycling Units . | . . . Scanalyzers . | . . . Garrison Access . | . . . Data Cores Recovered . | . . . Used . | . . . Hacking Detections 7 | . 7 . Full Trace Events 1 | . 1 . Feedback Events . | . . . Feedback Blocked . | . . . Robot Schematics Acquired . | . . . Robots Built . | . . . Matter . | . . . Time . | . . . Total Robot Build Rating . | . . . Part Schematics Acquired . | . . . Parts Built . | . . . Matter . | . . . Time . | . . . Total Part Build Rating . | . . . Parts Repaired . | . . . Time . | . . . Parts Recycled . | . . . Recycled Matter . | . . . Retrieved Matter . | . . . Retrieved Components . | . . . Parts Scanalyzed . | . . . Part Schematics Acquired . | . . . Parts Damaged . | . . . Bothacking | -11 -10 -10 ------------ Run | Scr Mat Min Used RIF Installer . | . . . Robots Hacked . | . . . Non-combat . | . . . Combat . | . . . Robot Hacks Applied . | . . . Relay Couplers Released . | . . . Robots Rewired . | . . . Allies Hacked . | . . . Hacks Repelled . | . . . Allies | -11 -10 -10 -------- Run | Scr Mat Min Total Allies . | . . . Largest Group . | . . . Highest-Rated Group . | . . . Highest-Rated Ally . | . . . Total Orders . | . . . Ally Attacks . | . . . Total Damage . | . . . Kills . | . . . Allies Corrupted . | . . . Allies Melted . | . . . Intel | -11 -10 -10 ------- Run | Scr Mat Min Robot Analysis Total . | . . . Derelict Logs Recovered . | . . . Drone Launches . | . . . Drone Recoveries . | . . . Exploration | -11 -10 -10 ------------- Run | Scr Mat Min Turns Passed 1568 | 126 829 613 Spaces Moved 1299 | 61 758 480 Core 11 | 7 . 4 Treads 50 | 50 . . Legs 7 | . . 7 Wheels 1231 | 4 758 469 Hover . | . . . Flight . | . . . Fastest Speed 50 | 50 80 90 Average Speed 89 | 142 82 93 Slowest Speed 200 | 160 90 200 Overloaded Moves . | . . . Propulsion Burnouts . | . . . Robots Hopped . | . . . Cave-ins Triggered . | . . . Exploration Rate (%) 54 | 5 86 73 Regions Visited 2 Branch Regions 1 Pre-discovered Areas . | . . . Known Exits Taken 1 | . 1 . Unknown Exits Taken 1 | 1 . . Scrap Searched 3 | . . 3 Spaces Dug 23 | . 23 . Terrain Destroyed 25 | . 23 2 Melee . | . . . Projectile . | . . . AOE 25 | . 23 2 Actions | -11 -10 -10 --------- Run | Scr Mat Min Total 1586 | 93 880 613 Wait 94 | . 25 69 Move 1297 | 60 757 480 Hop . | . . . Pick Up 35 | 12 16 7 Fast Attach 9 | 1 1 7 Attach 9 | 6 2 1 Detach . | . . . Swap 24 | 2 13 9 Drop 35 | 4 17 14 Fire 80 | 8 49 23 Melee . | . . . Ram . | . . . Kick . | . . . Crush . | . . . Escape Stasis . | . . . Rewire . | . . . Trap 3 | . . 3 Miscellaneous . | . . . Route ------- -11/Scrapyard -10/Materials (discovered 5 exits: [*Mat x3] / *Min x2) -10/Mines (discovered 2 exits: [*Mat x2]) History --------- Turn | Location | Event 5 | -11/Scrapyard | Discovered new exit (range 15) 127 | -11/Scrapyard | Entered Materials 199 | -10/Materials | Discovered new exit (range 12) 304 | -10/Materials | Discovered new exit (range 11) 318 | -10/Materials | Build established: Mutant 472 | -10/Materials | Discovered new exit (range 9) 532 | -10/Materials | Identified exit to Mines 635 | -10/Materials | Discovered new exit (range 9) 956 | -10/Materials | Entered Mines 1232 | -10/Mines | Discovered new exit (range 5) 1253 | -10/Mines | Discovered new exit (range 7) 1297 | -10/Mines | Met a Derelict who couldn't figure out how to use a Trap Extractor 1363 | -10/Mines | Found a hidden stash of uninstalled traps 1524 | -10/Mines | Assembled infested the area 1529 | -10/Mines | Assisted by a Guerilla fighting off Assembled 1551 | -10/Mines | Core integrity fell below 50% 1565 | -10/Mines | Core integrity fell below 20% 1569 | -10/Mines | Destroyed by as-88597 with Assembled Heavy Rifle Last Messages --------------- 01548_ Chain reaction triggered in Lgt. Deuterium Engine. 01552_ U-05 Engineer lays Concrete. 01552_ EM Pulse Cannon destroyed. 01553_ The unstable cave ceiling collapses. 01553_ U-05 Engineer lays Concrete. 01556_ Com. Wheel destroyed. 01557_ U-05 Engineer lays Concrete. 01557_ Com. Wheel destroyed. 01558_ The unstable cave ceiling collapses. 01558_ U-05 Engineer builds a Wall. 01558_ Lgt. Nuclear Core destroyed. 01559_ The unstable cave ceiling collapses. 01562_ U-05 Engineer lays Concrete. 01563_ The unstable cave ceiling collapses. 01563_ U-05 Engineer lays Concrete. 01564_ Heat Sink destroyed. 01564_ U-05 Engineer builds a Wall. 01565_ The unstable cave ceiling collapses. 01566_ K-01 Serf destroyed. 01569_ U-05 Engineer lays Concrete. Map ----- +----------------------------------------------------+ | ?# ###### ## #?????????????? | | ?# < ]%!!= X #?????????????? | | ?# ####%% #????#########? | | ?# #??#=*! #????# & #? | | ?# #??#= #????# ## # #? | | ?########??# < #????# # #? | | ???????????# #????# # # ## | | ???????????# #????# #& | | ???????????#### #####????# ## | | ??????????????#*######???# #? | | ??????????????#=%=[%%#???#### ####? | | ??????????????# ####%#??????# #???? | | ??????????????# #?## #??????# #???# | | ??????????????# #?#=%######## #?### | | ??????????????# ### ! ### | | ???????######## ##! ######## ## | | ???????# # &##??????# ### | | ?????### %####### &#???????# #?### | | ?????# ##????# #???????# #???? | | ?????## u####?## ##???????# #???? | | ?????# %= ### #???????? ???? | | ?????#; ## ##??????? ??? | | ?????#; d ##??????###??## | | ????## #### #??????? | | ???## * #??????? | | ???# @ #?? | | ??## ## # #?? | | ??# ## ## ##### #?? | | ?## ##=%#?### ##???????? | | ?# # ## #????###????????? | | ?# ## #???????????????? | | ?# # ### #???????????????? | | ?# # ##?# #???????????????? | | ?## a ##??# #???????????????? | | ??## ###???# #???????????????? | | ???### ##?????# #???????????????? | | ?????# #??????# #???????????????? | | ?????# #??????# ????????????????? | | ?????# #??????# ????????????????? | | ?????# #??????# ????????????????? | | ?????# #??????# ????????????????? | | ?????# #???????# ????????????????? | | ?????# #????????#????????????????? | | ?????# #?????????????????????????? | | ?????# ?????????????????????????? | | ?????# ?????????????????????????? | | ?????#####????????????????????????? | | ??????????????????????????????????? | | ??????????????????????????????????? | | ??????????????????????????????????? | +----------------------------------------------------+ Best States ------------- Heat Dissipation 35 Energy Generation 14 Energy Capacity 250 Matter Stores 300 Matter Capacity 300 Sight Range 16 Terrain Scan Density 60 Resistance: KI 20 Resistance: TH 20 Resistance: EX 20 Resistance: EM 20 Resistance: I 20 Resistance: S 20 Resistance: P 20 Evasion (%) 44 Recoil Reduction 2 Offensive Hacking 10 Item Schematics ----------------- None Robot Schematics ------------------ None Fabricated ------------ Nothing Alien Tech Used ----------------- None Achievements -------------- None Challenges ------------ None Game ------ Seed TerrainAssembledWeb Manual? 0 Play Time 00:38:47 Cumulative 24.9 hours Start 2020.02.09 @ 01:57:00 End 2020.02.09 @ 18:36:36 Sessions 3 Manual Loads 0 Difficulty Adventurer Special Mode None Game No. 27 Rogue 21 Adventurer 6 Explorer 0 Win Type - Total 0 Types 0/0/0/0/0/0/0 Lore% 4 Gallery% 18 Achievement% 18 Wizard Run 0 Options --------- ASCII 0 Keyboard 0 Movement Mouse Keybinds 0 Fullscreen 1 Font 12/CogTall Map View 83x54 Tactical HUD 1 Map Filters NONE Filters NONE Steam 1 RUN: 07a8878a-8a20-49f7-bcc2-7d51028680b1